fUSD/lending_fUSD_20240223
["ID","MTS","AMOUNT","RATE_DAILY","PERIOD"]
[314936546,1708687884026,-2575.90005728,0.00028571,2]
[314936547,1708687884035,-500.0,0.00028571,2]
[314936548,1708687884046,-673.33,0.00028571,2]
[314936549,1708687884057,-500.0,0.00028571,2]
[314936550,1708687884066,-500.0,0.00028571,2]
[314936551,1708687884075,-500.0,0.00028571,2]
[314936552,1708687884085,-684.42,0.00028571,2]
[314936553,1708687884094,-500.0,0.00028571,2]
[314936554,1708687884103,-500.0,0.00028571,2]
[314936555,1708687884112,-500.0,0.00028571,2]
[314936556,1708687884121,-170.45928393,0.00028571,2]
[314936557,1708687884130,-500.0,0.00028571,2]
[314936558,1708687884139,-664.8,0.00028571,2]
[314936559,1708687884148,-500.0,0.00028571,2]
[314936560,1708687884158,-500.0,0.00028571,2]
[314936561,1708687884168,-573.23,0.00028571,2]
[314936562,1708687884177,-879.62,0.00028571,2]
[314936563,1708687884186,-1071.97,0.00028571,2]
[314936564,1708687884196,-500.0,0.00028571,2]
[314936565,1708687884205,-800.57,0.00028571,2]
[314936566,1708687884215,-500.0,0.00028571,2]
[314936567,1708687884224,-500.0,0.00028571,2]
[314936568,1708687884234,-500.0,0.00028571,2]
[314936569,1708687884243,-500.0,0.00028571,2]
[314936570,1708687884252,-500.0,0.00028571,2]
[314936571,1708687884262,-504.83,0.00028571,2]
[314936572,1708687884271,-500.0,0.00028571,2]
[314936573,1708687884280,-500.0,0.00028571,2]
[314936574,1708687884289,-500.0,0.00028571,2]
[314936575,1708687884300,-668.38,0.00028571,2]
[314936576,1708687884309,-534.03,0.00028571,2]
[314936577,1708687884317,-500.0,0.00028571,2]
[314936578,1708687884328,-500.0,0.00028571,2]
[314936579,1708687884337,-500.0,0.00028571,2]
[314936580,1708687884346,-500.0,0.00028571,2]
[314936581,1708687884357,-500.0,0.00028571,2]
[314936582,1708687884366,-500.0,0.00028571,2]
[314936583,1708687884376,-318.90926584,0.00028571,2]
[314936584,1708687884387,-543.97,0.00028571,2]
[314936585,1708687884401,-500.0,0.00028571,2]
[314936586,1708687884410,-692.42,0.00028571,2]
[314936587,1708687884420,-652.69,0.00028571,2]
[314936588,1708687884430,-360.40107621,0.00028571,2]
[314936589,1708687884439,-500.0,0.00028571,2]
[314936590,1708687884449,-500.0,0.00028571,2]
[314936591,1708687884458,-500.0,0.00028571,2]
[314936592,1708687884469,-500.0,0.00028571,2]
[314936593,1708687884478,-500.0,0.00028571,2]
[314936594,1708687884487,-500.0,0.00028571,2]
[314936595,1708687884496,-500.0,0.00028571,2]
[314936596,1708687884505,-169.41643088,0.00028571,2]
[314936597,1708687884513,-500.0,0.00028571,2]
[314936598,1708687884523,-500.0,0.00028571,2]
[314936599,1708687884532,-569.49433187,0.00028571,2]
[314936600,1708687884543,-500.0,0.00028571,2]
[314936601,1708687884552,-525.53,0.00028571,2]
[314936602,1708687884561,-500.0,0.00028571,2]
[314936603,1708687884570,-500.0,0.00028571,2]
[314936604,1708687884579,-500.0,0.00028571,2]
[314936605,1708687884588,-500.0,0.00028571,2]
[314936606,1708687884597,-500.0,0.00028571,2]
[314936607,1708687884606,-500.0,0.00028571,2]
[314936608,1708687884615,-500.0,0.00028571,2]
[314936609,1708687884625,-500.0,0.00028571,2]
[314936610,1708687884635,-546.55,0.00028571,2]
[314936611,1708687884644,-554.09,0.00028571,2]
[314936612,1708687884653,-500.0,0.00028571,2]
[314936613,1708687884662,-500.0,0.00028571,2]
[314936614,1708687884671,-500.0,0.00028571,2]
[314936615,1708687884680,-500.0,0.00028571,2]
[314936616,1708687884689,-581.81,0.00028571,2]
[314936617,1708687884699,-500.05,0.00028571,2]
[314936618,1708687884708,-500.0,0.00028571,2]
[314936619,1708687884718,-526.32842758,0.00028571,2]
[314936620,1708687884727,-500.0,0.00028571,2]
[314936621,1708687884736,-500.0,0.00028571,2]
[314936622,1708687884745,-663.14,0.00028571,2]
[314936623,1708687884756,-500.0,0.00028571,2]
[314936624,1708687884765,-622.95166654,0.00028571,2]
[314936625,1708687884773,-500.0,0.00028571,2]
[314936626,1708687884782,-500.0,0.00028571,2]
[314936627,1708687884793,-500.0,0.00028571,2]
[314936628,1708687884802,-500.0,0.00028571,2]
[314936629,1708687884812,-500.0,0.00028571,2]
[314936630,1708687884821,-705.93,0.00028571,2]
[314936631,1708687884831,-500.0,0.00028571,2]
[314936632,1708687884840,-689.25,0.00028571,2]
[314936633,1708687884849,-500.0,0.00028571,2]
[314936634,1708687884859,-500.0,0.00028571,2]
[314936635,1708687884868,-500.0,0.00028571,2]
[314936636,1708687884878,-1000.0,0.00028571,7]
[314936637,1708687884887,-500.0,0.00028571,2]
[314936638,1708687884897,-618.5225587,0.00028571,2]
[314936639,1708687884906,-500.0,0.00028571,2]
[314936640,1708687884915,-500.0,0.00028571,2]
[314936641,1708687884924,-500.0,0.00028571,2]
[314936642,1708687884933,-500.0,0.00028571,2]
[314936643,1708687884942,-500.0,0.00028571,2]
[314936644,1708687884951,-500.0,0.00028571,2]
[314936645,1708687884961,-500.0,0.00028571,2]
[314936646,1708687884971,-500.0,0.00028571,2]
[314936647,1708687884980,-572.85,0.00028571,2]
[314936648,1708687884990,-500.0,0.00028571,2]
[314936649,1708687884999,-500.0,0.00028571,2]
[314936650,1708687885008,-630.23,0.00028571,2]
[314936651,1708687885018,-576.84,0.00028571,2]
[314936652,1708687885027,-548.45,0.00028571,2]
[314936653,1708687885037,-500.0,0.00028571,2]
[314936654,1708687885047,-500.0,0.00028571,2]
[314936655,1708687885057,-500.0,0.00028571,2]
[314936656,1708687885067,-515.43,0.00028571,2]
[314936657,1708687885077,-500.0,0.00028571,2]
[314936658,1708687885087,-500.0,0.00028571,2]
[314936659,1708687885097,-1417.3,0.00028571,2]
[314936660,1708687885106,-500.0,0.00028571,2]
[314936661,1708687885115,-500.0,0.00028571,2]
[314936662,1708687885125,-225.41168644,0.00028571,2]
[314936663,1708687885134,-500.0,0.00028571,2]
[314936664,1708687885143,-500.0,0.00028571,2]
[314936665,1708687885154,-500.0,0.00028571,2]
[314936666,1708687885163,-1090.8,0.00028571,2]
[314936667,1708687885172,-334.16941328,0.00028571,2]
[314936668,1708687885181,-500.0,0.00028571,2]
[314936669,1708687885190,-1164.2,0.00028571,2]
[314936670,1708687885200,-503.2,0.00028571,2]
[314936671,1708687885209,-500.0,0.00028571,2]
[314936672,1708687885218,-569.39,0.00028571,2]
[314936673,1708687885227,-500.0,0.00028571,2]
[314936674,1708687885236,-500.0,0.00028571,2]
[314936675,1708687885250,-500.0,0.00028571,2]
[314936676,1708687885260,-500.0,0.00028571,2]
[314936677,1708687885269,-500.0,0.00028571,2]
[314936678,1708687885278,-653.62,0.00028571,2]
[314936679,1708687885287,-640.92,0.00028571,2]
[314936680,1708687885298,-2000.0,0.00028587,2]
[314936681,1708687885308,-200.0,0.00028587,2]
[314936682,1708687885317,-200.0,0.00028587,2]
[314936683,1708687885327,-150.0,0.00028601,2]
[314936684,1708687885336,-3902.63,0.00028603,2]
[314936685,1708687885346,-734.38,0.00028603,2]
[314936686,1708687885355,-500.0,0.00028603,2]
[314936687,1708687885367,-579.15,0.00028603,2]
[314936688,1708687885377,-1561.14,0.00028603,2]
[314936689,1708687885386,-651.84,0.00028603,2]
[314936690,1708687885395,-1084.77,0.00028603,2]
[314936691,1708687885406,-1887.89,0.00028603,2]
[314936692,1708687885416,-609.56,0.00028603,2]
[314936693,1708687885425,-12394.29,0.00028603,2]
[314936694,1708687885436,-783.01,0.00028603,2]
[314936695,1708687885447,-4064.58,0.00028603,2]
[314936696,1708687885457,-748.74,0.00028603,2]
[314936697,1708687885466,-3606.12,0.00028603,2]
[314936698,1708687885476,-1803.24,0.00028603,2]
[314936699,1708687885485,-500.0,0.00028603,2]
[314936700,1708687885495,-1373.42,0.00028603,2]
[314936701,1708687885505,-500.0,0.00028603,2]
[314936702,1708687885515,-3288.95,0.00028603,2]
[314936703,1708687885525,-500.0,0.00028603,2]
[314936704,1708687885535,-1085.83,0.00028603,2]
[314936705,1708687885546,-574.06,0.00028603,2]
[314936706,1708687885556,-500.0,0.00028603,2]
[314936707,1708687885567,-5748.3,0.00028603,2]
[314936708,1708687885577,-500.0,0.00028603,2]
[314936709,1708687885587,-955.05,0.00028603,2]
[314936710,1708687885597,-585.26,0.00028603,2]
[314936711,1708687885607,-909.02,0.00028603,2]
[314936712,1708687885618,-932.29,0.00028603,2]
[314936713,1708687885628,-1451.42,0.00028603,2]
[314936714,1708687885638,-654.98,0.00028603,2]
[314936715,1708687885647,-808.82,0.00028603,2]
[314936716,1708687885656,-1169.24,0.00028603,2]
[314936717,1708687885666,-884.15,0.00028603,2]
[314936718,1708687885676,-677.0,0.00028603,2]
[314936719,1708687885686,-606.24,0.00028603,2]
[314936720,1708687885695,-835.13,0.00028603,2]
[314936721,1708687885705,-2229.23,0.00028603,2]
[314936722,1708687885719,-970.48,0.00028603,2]
[314936723,1708687885729,-1003.43,0.00028603,2]
[314936724,1708687885739,-963.02,0.00028603,2]
[314936725,1708687885749,-538.59,0.00028603,2]
[314936726,1708687885759,-556.56,0.00028603,2]
[314936727,1708687885769,-1709.58,0.00028603,2]
[314936728,1708687885779,-500.0,0.00028604,2]
[314936729,1708687885788,-500.0,0.00028604,2]
[314936730,1708687885798,-500.0,0.00028604,2]
[314936731,1708687885808,-500.0,0.00028604,2]
[314936732,1708687885817,-500.0,0.00028604,2]
[314936733,1708687885826,-500.0,0.00028604,2]
[314936734,1708687885836,-500.0,0.00028604,2]
[314936735,1708687885845,-500.0,0.00028604,2]
[314936736,1708687885855,-500.0,0.00028604,2]
[314936737,1708687885864,-500.0,0.00028604,2]
[314936738,1708687885873,-500.0,0.00028604,2]
[314936739,1708687885883,-500.0,0.00028604,2]
[314936740,1708687885892,-500.0,0.00028604,2]
[314936741,1708687885901,-500.0,0.00028604,2]
[314936742,1708687885910,-500.0,0.00028604,2]
[314936743,1708687885920,-859.67,0.00028604,2]
[314936744,1708687885929,-500.0,0.00028604,2]
[314936745,1708687885939,-500.0,0.00028604,2]
[314936746,1708687885948,-500.0,0.00028604,2]
[314936747,1708687885958,-583.94,0.00028604,2]
[314936748,1708687885967,-500.0,0.00028604,2]
[314936749,1708687885977,-594.6,0.00028604,2]
[314936750,1708687885986,-500.0,0.00028604,2]
[314936751,1708687885996,-500.0,0.00028604,2]
[314936752,1708687886006,-500.0,0.00028604,2]
[314936753,1708687886015,-500.0,0.00028604,2]
[314936754,1708687886026,-591.93,0.00028604,2]
[314936755,1708687886035,-500.0,0.00028604,2]
[314936756,1708687886045,-500.0,0.00028604,2]
[314936757,1708687886055,-577.02,0.00028604,2]
[314936758,1708687886064,-500.0,0.00028604,2]
[314936759,1708687886074,-567.19,0.00028604,2]
[314936760,1708687886083,-500.0,0.00028604,2]
[314936761,1708687886093,-500.0,0.00028604,2]
[314936762,1708687886102,-644.84,0.00028604,2]
[314936763,1708687886112,-564.62,0.00028604,2]
[314936764,1708687886122,-500.0,0.00028604,2]
[314936765,1708687886131,-500.0,0.00028604,2]
[314936766,1708687886141,-500.0,0.00028604,2]
[314936767,1708687886155,-508.82,0.00028604,2]
[314936768,1708687886164,-500.0,0.00028604,2]
[314936769,1708687886174,-500.0,0.00028604,2]
[314936770,1708687886184,-150.0,0.00028604,2]
[314936771,1708687886193,-500.0,0.00028604,2]
[314936772,1708687886202,-500.0,0.00028604,2]
[314936773,1708687886212,-500.0,0.00028604,2]
[314936774,1708687886222,-500.0,0.00028604,2]
[314936775,1708687886230,-500.0,0.00028604,2]
[314936776,1708687886240,-500.0,0.00028604,2]
[314936777,1708687886249,-500.0,0.00028604,2]
[314936778,1708687886259,-500.0,0.00028604,2]
[314936779,1708687886268,-790.83,0.00028604,2]
[314936780,1708687886278,-500.0,0.00028604,2]
[314936781,1708687886287,-708.94,0.00028604,2]
[314936782,1708687886299,-500.0,0.00028604,2]
[314936783,1708687886309,-652.21,0.00028604,2]
[314936784,1708687886318,-500.0,0.00028604,2]
[314936785,1708687886328,-500.0,0.00028604,2]
[314936786,1708687886338,-500.0,0.00028604,2]
[314936787,1708687886349,-500.0,0.00028604,2]
[314936788,1708687886361,-1275.36,0.00028604,2]
[314936789,1708687886371,-500.0,0.00028604,2]
[314936790,1708687886380,-429.38792917,0.00028604,2]
[314936791,1708687886393,-673.53,0.00028604,2]
[314936792,1708687886403,-1234.63,0.00028604,2]
[314936793,1708687886413,-779.63,0.00028604,2]
[314936794,1708687886423,-500.0,0.00028604,2]
[314936795,1708687886433,-500.0,0.00028604,2]
[314936796,1708687886442,-894.25,0.00028604,2]
[314936797,1708687886452,-500.0,0.00028604,2]
[314936798,1708687886462,-4586.7,0.00028604,2]
[314936799,1708687886472,-500.0,0.00028604,2]
[314936800,1708687886481,-500.0,0.00028604,2]
[314936801,1708687886491,-1038.86,0.00028604,2]
[314936802,1708687886500,-3380.8,0.00028604,2]
[314936803,1708687886510,-500.0,0.00028604,2]
[314936804,1708687886520,-1704.96,0.00028604,2]
[314936805,1708687886529,-500.0,0.00028604,2]
[314936806,1708687886539,-746.86,0.00028604,2]
[314936807,1708687886549,-500.0,0.00028604,2]
[314936808,1708687886560,-3211.66,0.00028604,2]
[314936809,1708687886570,-500.0,0.00028604,2]
[314936810,1708687886580,-500.0,0.00028604,2]
[314936811,1708687886589,-613.68,0.00028604,2]
[314936812,1708687886598,-1432.24,0.00028604,2]
[314936813,1708687886608,-1090.67,0.00028604,2]
[314936814,1708687886617,-500.0,0.00028604,2]
[314936815,1708687886626,-401.05124076,0.00028604,2]
[314936816,1708687886635,-2172.34,0.00028604,2]
[314936817,1708687886644,-813.15,0.00028604,2]
[314936818,1708687886654,-1166.63,0.00028604,2]
[314936819,1708687886664,-500.0,0.00028604,2]
[314936820,1708687886673,-1361.69,0.00028604,2]
[314936821,1708687886683,-1905.86,0.00028604,2]
[314936822,1708687886693,-650.59,0.00028604,2]
[314936823,1708687886702,-690.41,0.00028604,2]
[314936824,1708687886712,-7440.69,0.00028604,2]
[314936825,1708687886723,-500.0,0.00028604,2]
[314936826,1708687886734,-500.0,0.00028604,2]
[314936827,1708687886744,-535.64,0.00028604,2]
[314936828,1708687886754,-500.0,0.00028604,2]
[314936829,1708687886764,-1976.25,0.00028604,2]
[314936830,1708687886773,-500.0,0.00028604,2]
[314936831,1708687886783,-3282.11,0.00028604,2]
[314936832,1708687886792,-500.0,0.00028604,2]
[314936833,1708687886803,-500.0,0.00028604,2]
[314936834,1708687886812,-1322.37,0.00028604,2]
[314936835,1708687886821,-3684.82,0.00028604,2]
[314936836,1708687886830,-500.0,0.00028604,2]
[314936837,1708687886840,-1022.15,0.00028604,2]
[314936838,1708687886851,-2690.77,0.00028604,2]
[314936839,1708687886861,-967.0,0.00028604,2]
[314936840,1708687886870,-788.57,0.00028604,2]
[314936841,1708687886879,-876.9,0.00028604,2]
[314936842,1708687886889,-611.38,0.00028604,2]
[314936843,1708687886898,-565.66,0.00028604,2]
[314936844,1708687886907,-1261.53,0.00028604,2]
[314936845,1708687886917,-3150.01,0.00028604,2]
[314936846,1708687886926,-569.88,0.00028604,2]
[314936847,1708687886936,-3051.05,0.00028604,2]
[314936848,1708687886946,-755.21,0.00028604,2]
[314936849,1708687886955,-2024.58,0.00028604,2]
[314936850,1708687886964,-500.0,0.00028604,2]
[314936851,1708687886986,-4325.54,0.00028604,2]
[314936852,1708687886995,-1488.55,0.00028604,2]
[314936853,1708687887005,-500.0,0.00028604,2]
[314936854,1708687887015,-1629.43,0.00028604,2]
[314936855,1708687887025,-650.8,0.00028604,2]
[314936856,1708687887034,-1998.19,0.00028604,2]
[314936857,1708687887044,-500.0,0.00028604,2]
[314936858,1708687887054,-500.0,0.00028604,2]
[314936859,1708687887064,-500.0,0.00028604,2]
[314936860,1708687887074,-13459.56,0.00028604,2]
[314936861,1708687887084,-500.0,0.00028604,2]
[314936862,1708687887094,-569.49,0.00028604,2]
[314936863,1708687887104,-500.0,0.00028604,2]
[314936864,1708687887113,-154.37,0.00028615,2]
[314936865,1708687887123,-300.0,0.00028624,2]
[314936866,1708687887133,-500.0,0.00028644,2]
[314936867,1708687887143,-500.0,0.00028644,2]
[314936868,1708687887153,-1403.53,0.00028644,2]
[314936869,1708687887163,-500.0,0.00028644,2]
[314936870,1708687887173,-219.58398876,0.00028652,15]
[314936871,1708687887183,-156.47,0.00028661,2]
[314936872,1708687887193,-824.08,0.00028664,2]
[314936873,1708687887203,-500.0,0.00028665,2]
[314936874,1708687887213,-1375.14,0.00028665,2]
[314936875,1708687887222,-678.64,0.00028665,2]
[314936876,1708687887232,-500.0,0.00028665,2]
[314936877,1708687887242,-500.0,0.00028665,2]
[314936878,1708687887252,-702.66,0.00028665,2]
[314936879,1708687887261,-4890.62,0.00028665,2]
[314936880,1708687887271,-500.0,0.00028665,2]
[314936881,1708687887281,-500.0,0.00028665,2]
[314936882,1708687887291,-2518.4,0.00028665,2]
[314936883,1708687887302,-500.0,0.00028665,2]
[314936884,1708687887312,-500.0,0.00028665,2]
[314936885,1708687887321,-674.78,0.00028665,2]
[314936886,1708687887331,-524.82,0.00028665,2]
[314936887,1708687887341,-636.21,0.00028665,2]
[314936888,1708687887351,-500.0,0.00028665,2]
[314936889,1708687887364,-704.48,0.00028665,2]
[314936890,1708687887374,-587.68,0.00028665,2]
[314936891,1708687887383,-1112.79,0.00028665,2]
[314936892,1708687887393,-1963.61,0.00028665,2]
[314936893,1708687887404,-500.0,0.00028667,2]
[314936894,1708687887413,-942.75,0.00028667,2]
[314936895,1708687887423,-500.0,0.00028667,2]
[314936896,1708687887433,-500.0,0.00028667,2]
[314936897,1708687887444,-500.0,0.00028667,2]
[314936898,1708687887454,-500.0,0.00028667,2]
[314936899,1708687887466,-500.0,0.00028667,2]
[314936900,1708687887476,-500.0,0.00028667,2]
[314936901,1708687887486,-500.0,0.00028667,2]
[314936902,1708687887496,-500.0,0.00028667,2]
[314936903,1708687887505,-500.0,0.00028667,2]
[314936904,1708687887515,-500.0,0.00028667,2]
[314936905,1708687887524,-500.0,0.00028667,2]
[314936906,1708687887534,-500.0,0.00028667,2]
[314936907,1708687887543,-500.0,0.00028667,2]
[314936908,1708687887554,-500.0,0.00028667,2]
[314936909,1708687887564,-500.0,0.00028667,2]
[314936910,1708687887573,-500.0,0.00028667,2]
[314936911,1708687887583,-500.0,0.00028667,2]
[314936912,1708687887592,-561.56834088,0.00028667,2]
[314936913,1708687887602,-608.76,0.00028667,2]
[314936914,1708687887611,-500.0,0.00028667,2]
[314936915,1708687887619,-500.0,0.00028667,2]
[314936916,1708687887627,-500.0,0.00028667,2]
[314936917,1708687887635,-500.0,0.00028667,2]
[314936918,1708687887642,-500.0,0.00028667,2]
[314936919,1708687887651,-500.0,0.00028667,2]
[314936920,1708687887660,-500.0,0.00028667,2]
[314936921,1708687887669,-500.0,0.00028667,2]
[314936922,1708687887679,-500.0,0.00028667,2]
[314936923,1708687887688,-522.23,0.00028667,2]
[314936924,1708687887698,-500.0,0.00028667,2]
[314936925,1708687887707,-605.43,0.00028667,2]
[314936926,1708687887717,-500.0,0.00028667,2]
[314936927,1708687887726,-500.0,0.00028667,2]
[314936928,1708687887736,-500.0,0.00028667,2]
[314936929,1708687887745,-1500.0,0.000287,2]
[314936930,1708687887755,-500.0,0.00028706,2]
[314936931,1708687887766,-924.37,0.00028706,2]
[314936932,1708687887776,-500.0,0.00028706,2]
[314936933,1708687887786,-732.46,0.00028706,2]
[314936934,1708687887798,-500.0,0.00028706,2]
[314936935,1708687888126,-577.15,0.00028706,2]
[314936936,1708687888164,-5409.94,0.00028707,2]
[314936937,1708687888176,-500.0,0.00028707,2]
[314936938,1708687888187,-585.12,0.00028707,2]
[314936939,1708687888199,-1157.17,0.00028707,2]
[314936940,1708687888211,-500.0,0.00028707,2]
[314936941,1708687888221,-298.69719166,0.00028707,2]
[314936942,1708687888233,-564.8,0.00028707,2]
[314936943,1708687888244,-500.0,0.00028707,2]
[314936944,1708687888255,-530.11,0.00028707,2]
[314936945,1708687888267,-1235.37,0.00028707,2]
[314936946,1708687888278,-500.0,0.00028707,2]
[314936947,1708687888289,-7584.27,0.00028707,2]
[314936948,1708687888305,-3746.99,0.00028707,2]
[314936949,1708687888317,-637.13,0.00028707,2]
[314936950,1708687888327,-791.88,0.00028707,2]
[314936951,1708687888339,-602.76,0.00028707,2]
[314936952,1708687888350,-909.61,0.00028707,2]
[314936953,1708687888364,-1374.76,0.00028707,2]
[314936954,1708687888375,-539.86,0.00028707,2]
[314936955,1708687888386,-500.0,0.00028707,2]
[314936956,1708687888397,-1242.91,0.00028707,2]
[314936957,1708687888410,-2031.83,0.00028707,2]
[314936958,1708687888421,-500.0,0.00028707,2]
[314936959,1708687888435,-500.0,0.00028708,2]
[314936960,1708687888447,-673.33,0.00028708,2]
[314936961,1708687888458,-500.0,0.00028708,2]
[314936962,1708687888469,-620.47906417,0.00028708,2]
[314936963,1708687888480,-500.0,0.00028708,2]
[314936964,1708687888492,-684.42,0.00028708,2]
[314936965,1708687888503,-500.0,0.00028708,2]
[314936966,1708687888514,-500.0,0.00028708,2]
[314936967,1708687888524,-500.0,0.00028708,2]
[314936968,1708687888534,-500.0,0.00028708,2]
[314936969,1708687888545,-664.8,0.00028708,2]
[314936970,1708687888558,-284.43959352,0.00028708,2]
[314936971,1708687888568,-500.0,0.00028708,2]
[314936972,1708687888578,-573.23,0.00028708,2]
[314936973,1708687888589,-879.62,0.00028708,2]
[314936974,1708687888598,-1071.97,0.00028708,2]
[314936975,1708687888609,-354.19087658,0.00028708,2]
[314936976,1708687888619,-800.57,0.00028708,2]
[314936977,1708687888629,-500.0,0.00028708,2]
[314936978,1708687888638,-500.0,0.00028708,2]
[314936979,1708687888647,-500.0,0.00028708,2]
[314936980,1708687888657,-500.0,0.00028708,2]
[314936981,1708687888667,-500.0,0.00028708,2]
[314936982,1708687888676,-504.83,0.00028708,2]
[314936983,1708687888686,-500.0,0.00028708,2]
[314936984,1708687888695,-500.0,0.00028708,2]
[314936985,1708687888705,-500.0,0.00028708,2]
[314936986,1708687888715,-668.38,0.00028708,2]
[314936987,1708687888724,-534.03,0.00028708,2]
[314936988,1708687888734,-500.0,0.00028708,2]
[314936989,1708687888744,-500.0,0.00028708,2]
[314936990,1708687888753,-500.0,0.00028708,2]
[314936991,1708687888763,-500.0,0.00028708,2]
[314936992,1708687888772,-500.0,0.00028708,2]
[314936993,1708687888782,-500.0,0.00028708,2]
[314936994,1708687888791,-543.97,0.00028708,2]
[314936995,1708687888805,-500.0,0.00028708,2]
[314936996,1708687888815,-692.42,0.00028708,2]
[314936997,1708687888825,-652.69,0.00028708,2]
[314936998,1708687888835,-500.0,0.00028708,2]
[314936999,1708687888847,-500.0,0.00028708,2]
[314937000,1708687888856,-500.0,0.00028708,2]
[314937001,1708687888866,-500.0,0.00028708,2]
[314937002,1708687888875,-500.0,0.00028708,2]
[314937003,1708687888884,-500.0,0.00028708,2]
[314937004,1708687888894,-500.0,0.00028708,2]
[314937005,1708687888903,-500.0,0.00028708,2]
[314937006,1708687888913,-500.0,0.00028708,2]
[314937007,1708687888922,-525.53,0.00028708,2]
[314937008,1708687888931,-500.0,0.00028708,2]
[314937009,1708687888941,-500.0,0.00028708,2]
[314937010,1708687888950,-500.0,0.00028708,2]
[314937011,1708687888959,-177.58280618,0.00028708,2]
[314937012,1708687888969,-500.0,0.00028708,2]
[314937013,1708687888978,-582.54197021,0.00028708,2]
[314937014,1708687888988,-500.0,0.00028708,2]
[314937015,1708687888998,-500.0,0.00028708,2]
[314937016,1708687889007,-546.55,0.00028708,2]
[314937017,1708687889017,-554.09,0.00028708,2]
[314937018,1708687889026,-500.0,0.00028708,2]
[314937019,1708687889036,-500.0,0.00028708,2]
[314937020,1708687889046,-500.0,0.00028708,2]
[314937021,1708687889059,-500.0,0.00028708,2]
[314937022,1708687889068,-581.81,0.00028708,2]
[314937023,1708687889078,-500.05,0.00028708,2]
[314937024,1708687889087,-500.0,0.00028708,2]
[314937025,1708687889096,-500.0,0.00028708,2]
[314937026,1708687889106,-500.0,0.00028708,2]
[314937027,1708687889116,-663.14,0.00028708,2]
[314937028,1708687889125,-500.0,0.00028708,2]
[314937029,1708687889134,-591.26294807,0.00028708,2]
[314937030,1708687889144,-500.0,0.00028708,2]
[314937031,1708687889154,-500.0,0.00028708,2]
[314937032,1708687889163,-500.0,0.00028708,2]
[314937033,1708687889173,-500.0,0.00028708,2]
[314937034,1708687889182,-705.93,0.00028708,2]
[314937035,1708687889191,-500.0,0.00028708,2]
[314937036,1708687889201,-689.25,0.00028708,2]
[314937037,1708687889210,-500.0,0.00028708,2]
[314937038,1708687889220,-500.0,0.00028708,2]
[314937039,1708687889229,-500.0,0.00028708,2]
[314937040,1708687889239,-1000.0,0.00028708,7]
[314937041,1708687889248,-500.0,0.00028708,2]
[314937042,1708687889257,-500.0,0.00028708,2]
[314937043,1708687889267,-500.0,0.00028708,2]
[314937044,1708687889276,-500.0,0.00028708,2]
[314937045,1708687889285,-500.0,0.00028708,2]